Cogmind - Beta 14 --- EXPLORER MODE // 2024.10.25 @ 14:55:33 Player: piracy master Result: Self-destructed Performance ------------- Evolutions (1) 500 Regions Visited (2) 400 Robots Destroyed (23) 115 Value Destroyed (408) 408 Prototype IDs (2) 40 Alien Tech Used (0) 0 Bonus (0) 0 TOTAL SCORE: 1463 Bonus ------- None Cogmind --------- Core Integrity 336/400 Matter 291/300 Energy 160/160 System Corruption 0% Temperature Warm (120) Movement Walking (120) Location -9/Materials Parts ------- > --- POWER (1) -------- Light Nuclear Core > --- PROPULSION (3) --- Aluminum Leg Aluminum Leg Aluminum Leg > --- UTILITY (4) ------ Visual Processing Unit Terrain Scanner Weapon Shielding > --- WEAPON (2) ------- Medium Laser Beam Cannon > --- INVENTORY (5) ---- Light Nuclear Core Large Battery (200) Improved Sensor Array Grenade Launcher Peak State ------------ > --- POWER ------------ Light Nuclear Core > --- PROPULSION ------- Aluminum Leg Aluminum Leg Aluminum Leg > --- UTILITY ---------- Visual Processing Unit Terrain Scanner Weapon Shielding Light Armor Plating > --- WEAPON ----------- Medium Laser Beam Cannon > --- INVENTORY -------- Light Ion Engine Large Battery Improved Sensor Array Grenade Launcher [Rating: 13] Favorites ----------- Power Light Ion Engine Engine Light Ion Engine Power Core Light Nuclear Core Propulsion Aluminum Leg Leg Aluminum Leg Utility Weapon Shielding Device Terrain Scanner Processor Visual Processing Unit Protection Weapon Shielding Weapon Medium Laser Energy Gun Medium Laser Energy Cannon Beam Cannon Launcher Grenade Launcher Build | -11 -10 -9 ------- Run | Yrd Mat Mat Slots Evolved 3 | . 1 2 Power . | . . . Propulsion 1 | . 1 . Utility 2 | . . 2 Weapon . | . . . Parts Attached 19 | 7 7 5 Power 3 | 1 1 1 Engine 2 | 1 1 . Core 1 | . . 1 Reactor . | . . . Propulsion 3 | 2 1 . Treads . | . . . Leg 3 | 2 1 . Wheel . | . . . Hover . | . . . Flight . | . . . Utility 4 | 2 . 2 Device 1 | . . 1 Storage . | . . . Processor 1 | . . 1 Hackware . | . . . Protection 2 | 2 . . Artifact . | . . . Weapon 9 | 2 5 2 Energy Gun 5 | 2 2 1 Energy Cannon 1 | . 1 . Ballistic Gun . | . . . Ballistic Cannon . | . . . Launcher 3 | . 2 1 Special Weapon . | . . . Impact Weapon . | . . . Slashing Weapon . | . . . Piercing Weapon . | . . . Special Melee Weapon . | . . . Unidentified Prototypes . | . . . Parts Lost 1 | . . 1 Power . | . . . Propulsion . | . . . Utility 1 | . . 1 Weapon . | . . . Highest Loss Streak 1 | . . 1 To Critical Strikes . | . . . Average Slot Usage (%) 98 | . 99 98 Engine 7 | . 12 . Core 3 | . . 9 Leg 33 | . 36 30 Device 3 | . . 10 Processor 3 | . . 10 Protection 22 | . 25 18 Energy Gun 16 | . 20 9 Energy Cannon 5 | . 3 10 Launcher 1 | . 1 1 Peak Build Rating 13 | 7 8 13 Average Rating 9 | 4 7 12 On Entrance 5 | . 7 8 Naked Turns . | . . . Heaviest Build 16 | 11 12 16 Greatest Support 30 | 20 30 30 Greatest Overweight (x) . | . . . Average Overweight (x) . | . . . Largest Inventory Capacity 5 | 5 5 5 Average Capacity 5 | 5 5 5 Most Carried 5 | 5 5 5 Average Carried 3 | 1 2 3 Final Capacity 5 | 5 5 5 Final Carried 4 | . 4 4 Class Distribution -------------------- 100% | Hacker-Mutant Dominant Class ---------------- Hacker-Mutant | -10/Materials Hacker-Mutant | -9/Materials Resources | -11 -10 -9 ----------- Run | Yrd Mat Mat Matter Collected 426 | 202 168 56 Remotely . | . . . Salvage Created 472 | . 263 209 Parts 40 | . 26 14 Haulers Intercepted . | . . . Recyclers Shooed . | . . . Parts Field Recycled . | . . . Retrieved Matter . | . . . Parts Self-Destructed . | . . . Prevented . | . . . Kills | -11 -10 -9 ------- Run | Yrd Mat Mat Combat Hostiles Destroyed 14 | . 6 8 Guns 9 | . 4 5 Cannons 5 | . 2 3 Classes Destroyed 6 | . 5 1 Worker 2 | . 2 . Builder 2 | . 2 . Watcher 5 | . 3 2 Swarmer 11 | . 4 7 Grunt 2 | . 2 . Sentry 1 | . . 1 Best Kill Streak 3 | . 3 3 Combat Bots Only 3 | . 2 3 Max Kills in Single Turn 2 | . 2 1 Gunslinging . | . . . Exploded . | . . . Melee . | . . . Uniques/NPCs Destroyed . | . . . Combat | -11 -10 -9 -------- Run | Yrd Mat Mat Hostile Shots Fired 89 | . 46 43 Missed 26 | . 15 11 Damage Taken 431 | . 215 216 Core 111 | . 47 64 Absorbed by Shields . | . . . Redirected to Shielding 12 | . 1 11 Ignored by Resistances 292 | . 147 145 Core Remaining (%) 90 | 100 81 . Volleys Fired 61 | . 33 28 Largest 2 | . 2 2 Hottest 110 | . 110 110 Shots Fired 112 | . 59 53 Gun 74 | . 50 24 Cannon 33 | . 5 28 Launcher 5 | . 4 1 Special . | . . . Kinetic . | . . . Thermal 86 | . 34 52 Explosive 5 | . 4 1 Electromagnetic 21 | . 21 . Robot Hit Streak 18 | . 18 11 Robot Miss Streak 3 | . 3 2 Penetration Max . | . . . Secondary Targets 1 | . 1 . Max Gunslinging Chain 1 | . 1 . Shots Hit Robots 68 | . 40 28 Core Hits 29 | . 17 12 Critical Kills . | . . . Critical Parts Destroyed . | . . . Critical Strikes 4 | . 3 1 Burn 3 | . 2 1 Corrupt 1 | . 1 . Melee Attacks . | . . . Impact . | . . . Slashing . | . . . Piercing . | . . . Sneak Attacks . | . . . Combat Hostiles . | . . . Follow-up Attacks . | . . . Damage Inflicted 1137 | . 724 413 Guns 644 | . 471 173 Cannons 276 | . 36 240 Explosions 217 | . 217 . Melee . | . . . Ramming . | . . . Kinetic . | . . . Thermal 708 | . 295 413 Explosive 217 | . 217 . Electromagnetic 212 | . 212 . Impact . | . . . Slashing . | . . . Piercing . | . . . Highest Corruption . | . . . Average Corruption . | . . . Corruption Purged . | . . . Corruption Blocked . | . . . Overload Shots . | . . . Overflow Damage . | . . . Projectiles . | . . . Explosions . | . . . Melee . | . . . Knockbacks . | . . . Impact . | . . . Kinetic . | . . . Secondary . | . . . Self-Inflicted Damage 26 | . 26 . Shots 2 | . 2 . Rammed . | . . . Targets Rammed . | . . . Kicked . | . . . Crushed . | . . . Highest Temperature 412 | . 216 412 Average Temperature 109 | . 78 143 Received Heat Transfer 150 | . 75 75 Effects 3 | . . 3 Shutdowns 1 | . . 1 Interference 2 | . . 2 Siege Activations . | . . . Robots Corrupted . | . . . Combat Hostiles . | . . . Parts Fried 1 | . 1 . Impact Corruptions . | . . . Robots Melted . | . . . Combat Hostiles . | . . . Parts Melted 5 | . 3 2 Heat Transferred 2109 | . 999 1110 Parts Sabotaged . | . . . Parts Stolen . | . . . Parts Stripped . | . . . Power Chain Reactions . | . . . Alert | -11 -10 -9 ------- Run | Yrd Mat Mat Peak Influence 337 | . 327 337 Initial 98 | . . 98 Average 160 | . 145 222 Maximum Alert Level 1 | . 1 1 Low Security (%) 56 | 100 63 34 Level 1 43 | . 36 65 Level 2 . | . . . Level 3 . | . . . Level 4 . | . . . Level 5 . | . . . High Security . | . . . Max Security . | . . . Squads Dispatched . | . . . Investigation . | . . . Extermination . | . . . Reinforcement . | . . . Assault . | . . . Garrison . | . . . Intercept . | . . . Searches Triggered . | . . . Construction Impeded . | . . . Haulers Reinforced . | . . . Active Scanning Responses . | . . . Cargo Convoy Interrupts . | . . . Stealth | -11 -10 -9 --------- Run | Yrd Mat Mat Distress Signals 3 | . 1 2 Communications Jammed . | . . . Distress Signals . | . . . Times Spotted 27 | . 11 16 Peak Tracking Total 5 | . 2 5 Tactical Retreats . | . . . Traps | -11 -10 -9 ------- Run | Yrd Mat Mat Traps Triggered 1 | . 1 . Indirectly . | . . . Trap Hack Attempts . | . . . Triggered . | . . . Disarmed . | . . . Reprogrammed . | . . . Reused . | . . . Traps Extracted . | . . . Installed . | . . . Triggered . | . . . Machines | -11 -10 -9 ---------- Run | Yrd Mat Mat Machines Disabled 8 | . 5 3 Max in Single Turn 2 | . 2 2 Machines Repaired . | . . . Machines Dismantled . | . . . Machines Sabotaged . | . . . Overloaded Fab Kills . | . . . Hacking | -11 -10 -9 --------- Run | Yrd Mat Mat Machines Accessed 2 | . 1 1 Terminals 2 | . 1 1 Fabricators . | . . . Repair Stations . | . . . Recycling Units . | . . . Scanalyzers . | . . . Garrison Access . | . . . Total Hacks 3 | . 2 1 Successful 2 | . 1 1 Failed 1 | . 1 . Catastrophic . | . . . Database Lockouts . | . . . Manual . | . . . Terminals 3 | . 2 1 Fabricators . | . . . Repair Stations . | . . . Recycling Units . | . . . Scanalyzers . | . . . Garrison Access . | . . . Terminal Hacks 2 | . 1 1 Prototype ID Bank 1 | . . 1 Registered Components 1 | . 1 . Fabricator Hacks . | . . . Repair Station Hacks . | . . . Recycling Unit Hacks . | . . . Scanalyzer . | . . . Garrison Access Hacks . | . . . Unauthorized Hacks . | . . . Terminals . | . . . Fabricators . | . . . Repair Stations . | . . . Recycling Units . | . . . Scanalyzers . | . . . Garrison Access . | . . . Data Cores Recovered . | . . . Used . | . . . Hacking Detections 1 | . 1 . Full Trace Events . | . . . Feedback Events . | . . . Feedback Blocked . | . . . Robot Schematics Acquired . | . . . Robots Built . | . . . Authchips . | . . . Time . | . . . Total Robot Build Rating . | . . . Part Schematics Acquired . | . . . Parts Built . | . . . Authchips . | . . . Time . | . . . Total Part Build Rating . | . . . Parts Repaired . | . . . Time . | . . . Parts Recycled . | . . . Recycled Matter . | . . . Retrieved Matter . | . . . Retrieved Components . | . . . Parts Scanalyzed . | . . . Part Schematics Acquired . | . . . Parts Damaged . | . . . Bothacking | -11 -10 -9 ------------ Run | Yrd Mat Mat Used RIF Installer . | . . . Robots Hacked . | . . . Non-combat . | . . . Combat . | . . . Robot Hacks Applied . | . . . Relay Couplers Released . | . . . Fabnet Peak Effective % . | . . . Robots Rewired . | . . . Allies Hacked . | . . . Hacks Repelled . | . . . Allies | -11 -10 -9 -------- Run | Yrd Mat Mat Total Allies . | . . . Largest Group . | . . . Highest-Rated Group . | . . . Highest-Rated Ally . | . . . Total Orders . | . . . Ally Attacks . | . . . Total Damage . | . . . Kills . | . . . Allies Corrupted . | . . . Allies Melted . | . . . Intel | -11 -10 -9 ------- Run | Yrd Mat Mat Robot Analysis Total . | . . . Derelict Logs Recovered . | . . . Drone Launches . | . . . Drone Recoveries . | . . . Exploration | -11 -10 -9 ------------- Run | Yrd Mat Mat Turns Passed 578 | 50 323 205 Spaces Moved 296 | 40 178 78 Core 16 | 16 . . Treads . | . . . Legs 280 | 24 178 78 Wheels . | . . . Hover . | . . . Flight . | . . . Fastest Speed 50 | 50 120 120 Average Speed 116 | 92 120 120 Slowest Speed 120 | 120 120 120 Overloaded Moves . | . . . Propulsion Burnouts . | . . . Robots Hopped . | . . . Cave-ins Triggered . | . . . Exploration Rate (%) 21 | 4 48 13 Regions Visited 2 Branch Regions . Pre-discovered Areas . | . . . Known Exits Taken 2 | 1 1 . Unknown Exits Taken . | . . . Scrap Searched . | . . . Spaces Dug . | . . . Terrain Destroyed 50 | . 50 . Melee . | . . . Projectile . | . . . AOE 50 | . 50 . Terrain Rammed . | . . . Walls Destroyed . | . . . Machines Disabled . | . . . Actions | -11 -10 -9 --------- Run | Yrd Mat Mat Total 416 | 53 227 136 Wait 21 | . 1 20 Move 294 | 39 177 78 Hop . | . . . Pick Up 17 | 7 7 3 Fast Attach . | . . . Attach 12 | 7 2 3 Detach 1 | . . 1 Swap 7 | . 5 2 Drop 3 | . 2 1 Fire 61 | . 33 28 Melee . | . . . Ram . | . . . Kick . | . . . Crush . | . . . Escape Stasis . | . . . Rewire . | . . . Trap . | . . . Miscellaneous . | . . . Route ------- -11/Scrapyard -10/Materials -9/Materials History --------- Turn | Location | Event 3 | -11/Scrapyard | Identified exit to Materials 3 | -11/Scrapyard | Discovered exit to Materials (range 15) 51 | -11/Scrapyard | Entered Materials 51 | -10/Materials | Evolved 1 slot: Propulsion x1 274 | -10/Materials | Identified exit to Materials 274 | -10/Materials | Discovered exit to Materials (range 15) 315 | -10/Materials | Build established: Hacker-Mutant 374 | -10/Materials | Entered another Materials area 374 | -9/Materials | Evolved 2 slots: Utility x2 579 | -9/Materials | Self-destructed Last Messages --------------- 00544_ Lgt. Armor Plating destroyed. 00544_ K-01 Serf collects debris. 00552_ Y-45 Defender suffers critical hit (Burn). 00552_ K-01 Serf collects debris. 00553_ R-06 Scavenger collects Hover Unit. 00555_ Heat Sink melted. 00555_ Lgt. Treads melted. 00555_ Y-45 Defender destroyed. 00557_ R-06 Scavenger collects Hover Unit. 00559_ K-01 Serf collects debris. 00564_ U-05 Engineer lays Concrete. 00565_ K-01 Serf collects debris. 00565_ U-05 Engineer lays Concrete. 00566_ K-01 Serf collects debris. 00567_ R-06 Scavenger collects Hvy. Assault Rifle. 00568_ U-05 Engineer lays Concrete. 00575_ K-01 Serf collects debris. 00576_ R-06 Scavenger collects Flight Unit. Map ----- +----------------------------------------------------+ | ## = **#???????# #??????????????????????? | | ?# *[ ***#??#????# #??????????????????????? | | ?#[%=#####???????# #??????????????????????? | | ?#%% ############# [ #??????????????????????? | | ?# =% #??????????????????????? | | ?# % #??????????????????????? | | ?# "" #??????????????????????? | | ?######### " T" #??????????????????????? | | ?????????# "" "" ########???????????????? | | ???? ????+ "" !%= ?????????????? | | ???? ??? # [[ ?????????????? | | ?????????+ %=% ?????????????? | | ??#??????# " #########??????????????? | | ?????"? ?# " r#????? ????????????????? | | ?????????# " #??????????????????????? | | ??######## #?????"????????????????? | | ? ##??"?"????????????????? | | ????######## ## ???????????????????? | | ???????????# k % #? ???? #?????????????? | | ???????????###+## #?????????????????????? | | ????????????? ##+##### #?????????????????????? | | ????????????? ?# # #?????????????????????? | | ???????????? ## # ########## #??????????? | | ???????????? ##= # #??????????? | | ???????????####### # #??????????? | | ?????????????????# + @ #??????????? | | ?????????????????# # """ """ #??????????? | | ?????????????????# # """ """ ????????????? | | ?????????????????# # """ """?????????????? | | ?????????????????# # ?????????????? | | ?????????????????# # ?????????????? | | ?????????????????# # ?????????????? | | ?????????? ??? ??####### ##### ????????????? | | ???????????????????????# #???? ????????????? | | ??????????????#????????# #????? ???????????? | | ???????????? ??????????# #?????? ??????????? | | ???????????????????????# gg#???????? ???????????? | | ?????????????????? ????# #????????? ???????????? | | ???????????????????????# ka#?????????????????????? | | ???????????????????????#Yk #?????????????????????? | | ???????????????????????? a #?????????????????????? | | ???????????????????????? #?????????????????????? | | ???????????????????????? ??????????????????????? | | ???????????????????????? ??????????????????????? | | ?????????????????????????????????????????????????? | | ?????????????????????????????????????????????????? | | ?????????????????????????????????????????????????? | | ?????????????????????????????????????????????????? | | ?????????????????????????????????????????????????? | | ?????????????????????????????????????????????????? | +----------------------------------------------------+ Best States ------------- Heat Dissipation 28 Energy Generation 14 Energy Capacity 160 Matter Stores 300 Matter Capacity 300 Sight Range 18 Terrain Scan Range 14 Terrain Scan Density 10 Armor Coverage 150 Resistance: KI 35 Resistance: TH 35 Resistance: EX 35 Resistance: EM 35 Resistance: I 35 Resistance: S 35 Resistance: P 35 Weapon Shielding 33 Evasion (%) 55 Offensive Hacking 20 Item Schematics ----------------- None Robot Schematics ------------------ None Fabricated ------------ Nothing Alien Tech Used ----------------- None Achievements -------------- None Challenges ------------ None Game ------ Seed MeleeTrapFirepult Manual? 0 Play Time 00:12:53 Cumulative 4.5 hours Start 2024.10.25 @ 14:46:23 End 2024.10.25 @ 14:55:33 Sessions 1 Manual Loads 0 Difficulty Explorer Special Mode None Game No. 9 Rogue 3 Adventurer 4 Explorer 2 Win Type - Total 0 Types 0/0/0/0/0/0/0/0/0 Lore% 12 Gallery% 17 Achievement% 18 Wizard Run 0 Options --------- Layout 1 ASCII 0 Keyboard 0 Movement Mouse Keybinds 0 Fullscreen 1 Font 24/Smallcaps Map View 50x35 Zoom Use 0% Tactical HUD 1 Map Filters NONE Filters NONE Steam 1 RUN: 7ee00ac5-74fa-4c1b-90ed-0e3bb848af83